bitfinex-derivatives/quotes_SOLF0:USTF0_20250124
["timestamp","ask_amount","ask_price","bid_price","bid_amount"]
[1737690287480,1.3216,253.28,253.06,19.39556326]
[1737690287675,3.95,253.2,253.07,3.952]
[1737690287876,0.02979382,253.2,253.14,0.02676711]
[1737690289787,0.02979382,253.2,253.0,3.9531]
[1737690289982,1.3547,253.2,252.98,15.56826326]
[1737690290183,3.9525,253.05,252.96,2.5363]
[1737690290383,15.56826326,253.16,252.96,2.5363]
[1737690290682,1.2984,253.15,252.96,2.5363]
[1737690291078,0.02951026,253.08,253.03,0.0273387]
[1737690291379,3.98151026,253.08,253.03,0.0273387]
[1737690291582,0.02951026,253.08,253.03,0.0273387]
[1737690292383,0.02951026,253.08,253.03,15.59560196]
[1737690294085,1.2984,253.23,253.03,15.59560196]
[1737690294291,1.2984,253.23,253.08,15.56826326]
[1737690295490,3.9508,253.15,253.13,0.02996241]
[1737690295790,1.2984,253.23,253.03,15.56826326]
[1737690296090,0.03006114,253.17,253.11,0.02605878]
[1737690296686,3.9507,253.16,253.11,0.02605878]
[1737690296889,0.03006114,253.17,253.11,0.02605878]
[1737690300292,1.3449,253.27,253.13,15.56826326]
[1737690300594,1.3706,253.34,253.18,15.56826326]
[1737690300796,1.3706,253.34,253.2,3.9499]
[1737690301095,1.3706,253.34,253.14,1.3465]
[1737690301301,3.9487,253.28,253.16,3.9505]
[1737690301493,0.02622732,253.27,253.21,0.02910278]
[1737690301997,3.9497,253.23,253.21,0.02910278]
[1737690302892,0.02622732,253.27,253.21,0.02910278]
[1737690303301,0.02622732,253.27,253.25,3.9491]
[1737690303607,1.2855,253.41,253.23,15.56826326]
[1737690303801,1.2855,253.41,253.26,3.949]
[1737690304100,3.9479,253.34,253.23,15.56826326]
[1737690304401,15.56826326,253.4,253.19,1.2827]
[1737690304794,15.56826326,253.35,253.27,0.02803762]
[1737690305098,2.6446,253.34,253.27,0.02803762]
[1737690305400,3.9487,253.28,253.27,0.02803762]
[1737690306199,2.6446,253.34,253.27,0.02803762]
[1737690306794,3.9486,253.29,253.27,0.02803762]
[1737690308900,15.56826326,253.3,253.13,1.236]
[1737690309197,1.3206,253.28,253.13,1.236]
[1737690310102,0.0295875,253.23,253.18,0.02522798]
[1737690311700,3.95,253.2,253.18,0.02522798]
[1737690312202,0.0295875,253.23,253.18,0.02522798]
[1737690312702,1.3307,253.34,253.18,15.59349124]
[1737690312891,1.3307,253.34,253.18,15.56826326]
[1737690313396,1.3307,253.34,253.13,16.80426326]
[1737690313600,15.56826326,253.32,253.08,15.56826326]
[1737690313802,3.9517,253.09,253.08,103.4746756]
[1737690314299,3.9517,253.09,253.08,76.5181756]
[1737690314694,3.9517,253.09,253.08,68.4529756]
[1737690314899,3.9517,253.09,253.08,39.2956756]
[1737690315201,3.9517,253.09,253.08,26.9026756]
[1737690316004,3.952,253.07,253.06,31.58100281]
[1737690316201,31.13652652,253.11,252.89,1.3202]
[1737690316502,15.56826326,253.04,252.89,1.3202]
[1737690316700,15.56826326,253.11,252.89,1.3202]
[1737690317002,3.9521,253.07,252.89,1.3202]
[1737690317198,15.56826326,253.11,252.89,1.3202]
[1737690317597,0.02770428,253.01,252.95,0.02995368]
[1737690318001,19.78826326,253.16,252.91,15.56826326]
[1737690318198,15.11100601,253.15,252.95,0.02668786]
[1737690318404,3.9524,253.05,252.91,15.56826326]
[1737690318798,5.46410049,253.12,252.96,15.56826326]
[1737690319206,5.46410049,253.12,253.01,0.02545091]
[1737690320598,15.56826326,253.13,252.91,15.56826326]
[1737690320795,3.952,253.08,252.91,15.56826326]
[1737690320998,15.56826326,253.13,252.91,15.56826326]
[1737690321800,0.02751243,253.05,252.99,0.02969081]
[1737690322705,15.56826326,253.18,252.99,0.02969081]
[1737690323006,15.56826326,253.18,252.96,15.56826326]
[1737690323499,5.46410049,253.21,252.96,15.56826326]
[1737690323799,3.951,253.14,253.06,0.02511326]
[1737690323998,5.46410049,253.21,253.06,0.02511326]
[1737690325005,5.46410049,253.21,253.06,15.59337652]
[1737690325202,5.46410049,253.21,253.06,0.02511326]
[1737690325505,3.9511,253.13,253.06,0.02511326]
[1737690327196,15.56826326,253.23,253.06,0.02511326]
[1737690327402,3.9519,253.08,253.06,0.02511326]
[1737690327602,15.56826326,253.18,253.02,2.6538]
[1737690327805,15.56826326,253.23,253.12,0.02918204]
[1737690328206,3.951,253.14,253.12,0.02918204]
[1737690328401,27.43826326,253.23,253.02,2.6538]
[1737690328602,15.56826326,253.14,252.97,1.3397]
[1737690329005,15.56826326,253.14,252.92,1.3663]
[1737690329207,15.56826326,253.09,252.92,1.3663]
[1737690329700,3.9529,253.02,252.98,0.02862435]
[1737690329901,0.0266477,253.03,252.98,0.02862435]
[1737690330906,15.56826326,253.19,252.98,0.02862435]
[1737690331106,15.56826326,253.19,252.95,15.56826326]
[1737690331507,15.56826326,253.19,253.0,15.56826326]
[1737690331806,3.9513,253.12,253.01,1.338]
[1737690332008,15.56826326,253.19,253.07,0.02847449]
[1737690332209,15.56826326,253.13,252.92,1.3663]
[1737690333411,0.0261579,253.05,253.0,0.02528833]
[1737690333811,3.9529,253.01,253.0,0.02528833]
[1737690335113,0.0261579,253.05,253.0,0.02528833]
[1737690337312,5.46410049,253.19,253.03,15.56826326]
[1737690337507,21.85640197,253.24,253.03,15.56826326]
[1737690337813,3.9505,253.17,253.03,15.56826326]
[1737690338005,21.85640197,253.24,253.03,15.56826326]
[1737690338407,3.9503,253.18,253.11,0.029113]
[1737690338611,21.85640197,253.24,253.11,0.029113]
[1737690339115,3.9511,253.13,253.11,0.029113]
[1737690340215,3.9511,253.13,253.11,0.004813]
[1737690340417,3.9527,253.03,253.0,2.5189]
[1737690340807,15.56826326,253.14,253.0,2.5189]
[1737690341512,3.9524,253.05,253.04,0.03035183]
[1737690344715,0.03029678,253.1,253.04,0.03035183]
[1737690345320,3.9523,253.06,253.04,0.03035183]
[1737690345719,3.9523,253.06,253.04,5.183e-05]
[1737690347422,3.9547,252.9,252.88,1.2734]
[1737690347919,15.56826326,253.02,252.88,1.2734]
[1737690348624,0.02588414,252.98,252.92,0.02697574]
[1737690348820,7.9011,253.17,252.92,0.02697574]
[1737690348821,15.56826326,253.12,252.92,0.02697574]
[1737690349118,0.02955207,252.98,252.92,0.02542697]
[1737690349320,15.56826326,253.12,252.88,1.2734]
[1737690349514,0.02787007,252.98,252.92,0.03001884]
[1737690349719,15.56826326,253.12,252.88,1.2734]
[1737690349927,15.56826326,253.12,252.92,0.03014937]
[1737690350119,0.02638393,252.98,252.88,1.2734]
[1737690350324,21.85640197,253.05,252.99,0.03011215]
[1737690350520,0.02752564,253.03,252.88,1.2734]
[1737690350721,0.02752564,253.03,252.99,0.02733721]
[1737690350929,3.9534,252.99,252.91,3.9544]
[1737690351323,3.9534,252.99,252.92,1.2749]
[1737690351629,0.02601618,252.98,252.92,0.02846159]
[1737690353829,3.97951618,252.98,252.92,0.02846159]
[1737690354231,3.9541,252.94,252.92,0.02846159]
[1737690355428,3.9541,252.94,252.92,6.159e-05]
[1737690355623,15.56826326,252.96,252.77,2.522]
[1737690355824,15.56826326,252.96,252.77,6.4786]
[1737690356025,3.9558,252.83,252.77,2.522]
[1737690356232,15.56826326,252.96,252.77,2.522]
[1737690356424,7.9043,253.07,252.77,2.522]
[1737690356425,15.56826326,252.91,252.77,2.522]
[1737690356625,0.02547752,252.89,252.84,0.02769036]
[1737690356831,15.56826326,252.86,252.84,0.00679036]
[1737690357634,3.9554,252.85,252.84,0.00679036]
[1737690357829,15.56826326,252.86,252.7,2.6083]
[1737690358134,3.9576,252.72,252.7,2.6083]
[1737690358638,3.956,252.82,252.74,3.9571]
[1737690358935,15.56826326,252.91,252.7,2.6083]
[1737690359133,0.02970717,252.81,252.75,0.02516307]
[1737690359329,3.9566,252.78,252.75,0.02516307]
[1737690359535,0.02970717,252.81,252.75,0.02914562]
[1737690360034,0.02970717,252.81,252.75,3.98584562]
[1737690360234,5.46410049,252.94,252.75,0.02914562]
[1737690360437,5.46410049,252.94,252.74,15.56826326]
[1737690361136,5.46410049,252.94,252.8,15.56826326]
[1737690361340,0.02723162,252.9,252.84,0.0251341]
[1737690361539,5.46410049,252.99,252.85,15.56826326]
[1737690361743,5.46410049,252.99,252.86,1.2898]
[1737690361945,3.9541,252.94,252.86,5.2451]
[1737690362444,5.46410049,252.99,252.86,1.2898]
[1737690362744,0.02981494,252.93,252.87,0.03015626]
[1737690364244,3.9548,252.89,252.87,0.03015626]
[1737690364746,0.02981494,252.93,252.7,15.56826326]
[1737690365040,15.56826326,252.9,252.71,2.6207]
[1737690365242,3.957,252.76,252.71,2.6207]
[1737690365543,15.56826326,252.9,252.71,1.3767]
[1737690365743,3.9568,252.77,252.71,1.3767]
[1737690365947,0.0582,252.93,252.78,0.0277742]
[1737690366140,0.0582,252.93,252.74,15.56826326]
[1737690366340,0.0582,252.93,252.71,1.3767]
[1737690366841,15.56826326,252.9,252.71,1.3767]
[1737690367044,1.2471,252.94,252.71,1.3767]
[1737690367245,0.02817656,252.83,252.78,0.02667581]
[1737690367642,15.56826326,252.93,252.78,0.02662742]
[1737690367848,3.9564,252.8,252.78,0.02662742]
[1737690368345,1.36456698,252.82,252.76,0.02942363]
[1737690368735,3.9567,252.77,252.76,0.02942363]
[1737690370349,1.2785,252.81,252.59,15.56826326]
[1737690370542,2.5993,252.81,252.59,15.56826326]
[1737690371046,3.9581,252.68,252.59,15.56826326]
[1737690371242,2.5993,252.81,252.6,2.6331]
[1737690371442,2.5993,252.81,252.61,0.02989589]
[1737690371643,2.5993,252.81,252.6,2.6331]
[1737690372743,0.02978129,252.73,252.68,0.02546139]
[1737690373247,3.9578,252.7,252.68,0.02546139]
[1737690374743,15.59804455,252.73,252.52,1.3566]
[1737690374943,15.56826326,252.73,252.52,1.3566]
[1737690375347,15.56826326,252.68,252.52,1.3566]
[1737690376052,3.9596,252.59,252.57,0.02840233]
[1737690379952,1.8896,252.59,252.57,0.02840233]
[1737690380152,0.02676033,252.63,252.57,0.02840233]
[1737690380948,7.9133,252.78,252.57,0.02840233]
[1737690381352,7.9133,252.78,252.56,15.56826326]
[1737690381755,7.9133,252.78,252.52,1.3566]
[1737690381957,15.56826326,252.74,252.52,1.3566]
[1737690382257,0.02762408,252.68,252.62,0.02573915]
[1737690382958,3.9589,252.63,252.62,0.02573915]
[1737690384657,3.9605,252.53,252.52,1.3566]
[1737690385154,15.56826326,252.64,252.47,1.2637]
[1737690385750,3.961,252.5,252.47,1.2637]
[1737690385951,3.961,252.5,252.43,3.9619]
[1737690386151,15.56826326,252.64,252.46,0.02509401]
[1737690386351,3.9613,252.48,252.46,0.02509401]
[1737690386559,3.9613,252.48,252.42,2.531]
[1737690386760,3.9613,252.48,252.44,0.03005502]
[1737690386955,3.9616,252.46,252.44,0.03005502]
[1737690387552,0.02996645,252.5,252.44,0.03005502]
[1737690389464,3.9616,252.46,252.44,0.03005502]
[1737690390163,0.02996645,252.5,252.44,3.99195502]
[1737690390556,0.02996645,252.5,252.44,0.03005502]
[1737690392267,3.9611,252.49,252.44,0.03005502]
[1737690392668,0.02996645,252.5,252.44,0.03005502]
[1737690393569,3.9614,252.47,252.44,0.03005502]
[1737690394966,3.9616,252.46,252.44,0.03005502]
[1737690397575,15.56826326,252.49,252.31,2.7082]
[1737690397766,16.88636326,252.49,252.31,2.7082]
[1737690398268,16.88636326,252.49,252.31,1.335]
[1737690398668,3.9632,252.36,252.31,1.335]
[1737690398868,0.02545005,252.43,252.28,15.56826326]
[1737690399071,16.88636326,252.49,252.37,0.02614166]
[1737690399271,0.02804296,252.38,252.37,0.02614166]
[1737690399669,15.56826326,252.44,252.26,1.2564]
[1737690399872,0.02922373,252.4,252.25,1.2379]
[1737690400467,0.02922373,252.4,252.28,15.56826326]
[1737690400667,3.9629,252.38,252.36,3.963]
[1737690401576,7.9214,252.52,252.33,19.72826326]
[1737690401775,7.9214,252.52,252.38,15.56826326]
[1737690401973,7.9214,252.52,252.39,1.3365]
[1737690402975,0.0270126,252.48,252.43,15.59527131]
[1737690403276,0.0270126,252.48,252.43,0.02700805]
[1737690403879,3.9618,252.45,252.43,0.02700805]
[1737690404871,0.0270126,252.48,252.43,0.02700805]
[1737690405273,3.9614,252.47,252.43,0.02700805]
[1737690406772,0.0270126,252.48,252.43,0.02700805]
[1737690406978,7.41008624,252.52,252.43,14.04694601]
[1737690407777,7.41008624,252.52,252.39,1.3529]
[1737690408278,0.02796143,252.48,252.43,0.02958799]
[1737690409071,0.02796143,252.48,252.43,3.99158799]
[1737690409275,0.02796143,252.48,252.43,0.02958799]
[1737690410669,3.9618,252.45,252.43,0.02958799]
[1737690410873,0.02796143,252.48,252.34,1.3365]
[1737690411074,18.20456326,252.51,252.34,1.3365]
[1737690411277,3.9629,252.38,252.34,1.3365]
[1737690412682,3.9629,252.38,252.34,5.2999]
[1737690413476,3.9629,252.38,252.33,0.02553081]
[1737690413676,0.02569694,252.39,252.33,0.02553081]
[1737690414080,3.9633,252.35,252.33,0.02553081]
[1737690414481,0.02569694,252.39,252.37,3.9629]
[1737690414882,3.9619,252.44,252.43,3.9618]
[1737690415281,3.9619,252.44,252.38,15.56826326]
[1737690415480,18.9150337,252.48,252.46,3.9615]
[1737690415882,18.9150337,252.48,252.38,15.56826326]
[1737690416078,18.9150337,252.48,252.44,0.0263647]
[1737690416583,14.76344571,252.48,252.47,3.9614]
[1737690417082,8.18254571,252.48,252.47,3.9614]
[1737690417278,0.02764699,252.49,252.46,15.56826326]
[1737690417881,0.02764699,252.49,252.44,0.0263647]
[1737690419688,3.9614,252.48,252.44,0.0263647]
[1737690420387,3.9615,252.47,252.44,0.0263647]
[1737690420887,7.41008624,252.52,252.51,3.9608]
[1737690421085,7.41008624,252.52,252.46,15.56826326]
[1737690421586,7.41008624,252.52,252.47,3.9614]
[1737690421784,7.41008624,252.52,252.44,0.0263647]
[1737690421987,7.43741895,252.52,252.44,0.0263647]
[1737690422788,3.961,252.5,252.44,0.0263647]
[1737690423691,7.43741895,252.52,252.44,0.0263647]
[1737690423885,1.2683,252.51,252.35,3.9632]
[1737690424293,3.9622,252.42,252.33,15.56826326]
[1737690424889,3.961,252.5,252.38,15.56826326]
[1737690425094,1.2683,252.51,252.39,3.9626]
[1737690425291,3.9619,252.44,252.34,0.02595159]
[1737690425491,3.9619,252.44,252.33,15.56826326]
[1737690425687,3.9619,252.44,252.36,0.02611289]
[1737690425891,7.41008624,252.52,252.41,15.56826326]
[1737690426087,0.03039514,252.43,252.41,15.56826326]
[1737690426285,7.41008624,252.52,252.41,15.56826326]
[1737690426789,7.41008624,252.52,252.46,15.56826326]
[1737690427492,7.43991798,252.52,252.46,15.5973182]
[1737690427993,7.43991798,252.52,252.47,3.9613]
[1737690428394,7.43991798,252.52,252.46,6.29720007]
[1737690429089,7.43991798,252.52,252.46,0.02905494]
[1737690431198,3.9613,252.48,252.46,0.02905494]
[1737690431398,7.43991798,252.52,252.38,3.9627]
[1737690431693,7.41008624,252.52,252.36,15.56826326]
[1737690431998,3.9619,252.44,252.36,19.53136326]
[1737690432394,0.02498853,252.43,252.37,0.03019777]
[1737690432597,0.02498853,252.43,252.41,15.56826326]
[1737690432804,7.41008624,252.52,252.41,15.56826326]
[1737690433202,7.41008624,252.52,252.44,3.9618]
[1737690433203,3.9608,252.51,252.44,3.9618]
[1737690433503,3.9608,252.51,252.41,15.56826326]
[1737690433703,3.9608,252.51,252.46,15.56826326]
[1737690433903,0.0278897,252.49,252.47,3.9614]
[1737690434104,7.41008624,252.52,252.47,4.14]
[1737690434298,5.2278,252.59,252.51,19.52866326]
[1737690435206,3.9597,252.58,252.51,15.56826326]
[1737690435406,3.98722756,252.58,252.52,0.02941609]
[1737690436005,3.98722756,252.58,252.52,3.98991609]
[1737690436399,0.02752756,252.58,252.52,0.02941609]
[1737690437505,0.02752756,252.58,252.33,15.56826326]
[1737690437905,1.2683,252.59,252.33,15.56826326]
[1737690438604,0.02498797,252.49,252.43,0.02779372]
[1737690438906,3.9618,252.45,252.33,15.56826326]
[1737690439110,3.9618,252.45,252.43,0.02509563]
[1737690439308,3.9618,252.45,252.33,15.56826326]
[1737690439609,3.9618,252.45,252.41,0.02755885]
[1737690439810,0.0261212,252.42,252.41,0.02755885]
[1737690442602,3.9604,252.54,252.41,15.59582211]
[1737690442806,3.9604,252.54,252.47,15.56826326]
[1737690443610,3.9604,252.54,252.51,3.9607]
[1737690443913,0.02593242,252.53,252.48,0.02760219]
[1737690444509,0.02593242,252.53,252.51,3.9606]
[1737690444912,0.02593242,252.53,252.48,0.02760219]
[1737690445606,3.961,252.5,252.48,0.02760219]
[1737690445802,3.961,252.5,252.42,15.56826326]
[1737690447010,3.961,252.5,252.43,0.02922372]
[1737690447309,3.961,252.5,252.43,3.99122372]
[1737690447509,3.9613,252.48,252.43,0.02922372]
[1737690447813,1.2484,252.52,252.43,0.02922372]
[1737690448209,3.963,252.37,252.26,15.56826326]
[1737690449007,3.963,252.37,252.31,15.56826326]
[1737690449206,3.963,252.37,252.31,15.59696689]
[1737690449412,3.98811102,252.37,252.31,15.59696689]
[1737690449804,0.02511102,252.37,252.31,15.59696689]
[1737690450006,0.02511102,252.37,252.36,15.56826326]
[1737690451707,0.02511102,252.37,252.31,0.02870363]
[1737690454017,3.9637,252.33,252.31,0.02870363]
[1737690454316,0.02511102,252.37,252.31,0.02870363]
[1737690454716,0.02511102,252.37,252.33,3.9635]
[1737690454918,0.02511102,252.37,252.31,0.02870363]
[1737690455707,0.02511102,252.37,252.32,3.9637]
[1737690457218,0.02511102,252.37,252.31,0.02870363]
[1737690457717,0.02511102,252.37,252.11,0.4121]
[1737690457718,0.02511102,252.37,252.2,19.53376326]
[1737690457914,1.2781,252.39,252.2,19.53376326]
[1737690458117,1.2781,252.39,252.2,15.56826326]
[1737690458318,3.9648,252.26,252.2,15.56826326]
[1737690458823,3.9648,252.26,252.2,15.59390667]
[1737690459018,3.9949541,252.26,252.2,15.59390667]
[1737690459420,3.9949541,252.26,252.2,19.55940667]
[1737690459720,3.9949541,252.26,252.2,15.59390667]
[1737690460120,3.9949541,252.26,252.22,3.9653]
[1737690460315,0.0301541,252.26,252.2,15.59390667]
[1737690460616,1.2781,252.39,252.25,15.56826326]
[1737690460922,1.3678,252.34,252.2,15.56826326]
[1737690461219,3.9645,252.28,252.2,15.56826326]
[1737690461421,1.3678,252.34,252.2,15.56826326]
[1737690461619,1.3678,252.34,252.18,3.41464133]
[1737690461824,0.03001599,252.27,252.21,0.02801885]
[1737690462020,3.9647,252.26,252.21,0.02801885]
[1737690463122,0.03001599,252.27,252.21,0.02801885]
[1737690463321,3.9649,252.25,252.21,0.02801885]
[1737690464219,3.9653,252.23,252.21,0.02801885]
[1737690465220,0.03001599,252.27,252.09,4.14]
[1737690465424,3.9655,252.21,252.09,4.14]
[1737690465625,3.9655,252.21,252.14,3.9666]
[1737690465821,3.9655,252.21,252.09,4.14]
[1737690466020,3.9655,252.21,252.13,15.56826326]
[1737690466220,3.9655,252.21,252.15,3.9664]
[1737690466421,0.0295625,252.2,252.14,0.02847454]
[1737690467218,3.9661,252.17,252.14,0.02847454]
[1737690468325,0.0295625,252.2,252.14,0.02847454]
[1737690468326,0.0295625,252.2,252.17,3.9661]
[1737690468821,0.0295625,252.2,252.15,3.9664]
[1737690469027,0.0295625,252.2,252.14,0.02847454]
[1737690470227,0.0295625,252.2,252.16,3.9662]
[1737690470424,0.0295625,252.2,252.14,0.02847454]
[1737690470727,3.9641,252.3,252.23,3.9651]
[1737690470926,3.9641,252.3,252.18,15.56826326]
[1737690471128,3.9641,252.3,252.19,4.14]
[1737690471431,3.9641,252.3,252.24,3.9649]
[1737690471633,3.9641,252.3,252.19,4.14]
[1737690471831,3.99221671,252.3,252.24,0.03031072]
[1737690472629,0.02811671,252.3,252.28,3.9644]
[1737690472932,3.9628,252.39,252.28,15.56826326]
[1737690474135,0.02525378,252.36,252.31,0.02774369]
[1737690475332,3.9635,252.34,252.31,0.02774369]
[1737690475531,0.02525378,252.36,252.31,15.59600695]
[1737690475736,0.02525378,252.36,252.31,15.56011654]
[1737690476032,0.02525378,252.36,252.32,3.9637]
[1737690476234,0.02525378,252.36,252.26,15.56826326]
[1737690477033,0.02525378,252.36,252.28,0.02875765]
[1737690478234,0.02525378,252.36,252.29,3.9642]
[1737690478435,0.02525378,252.36,252.28,0.02875765]
[1737690478638,0.02525378,252.36,252.31,3.9639]
[1737690479337,0.02525378,252.36,252.34,3.9634]
[1737690480136,3.98845378,252.36,252.31,15.56826326]
[1737690481839,0.02525378,252.36,252.28,0.02875765]
[1737690482536,3.9636,252.33,252.28,0.02875765]
[1737690482738,0.02525378,252.36,252.28,0.02875765]
[1737690483239,0.02525378,252.36,252.28,3.99315765]
[1737690483630,3.98845378,252.36,252.29,3.9642]
[1737690483933,3.98845378,252.36,252.28,0.02875765]
[1737690484839,3.9633,252.35,252.28,0.02875765]
[1737690486639,3.9633,252.35,252.28,3.99315765]
[1737690486843,3.9633,252.35,252.28,0.02875765]
[1737690487042,3.9633,252.35,252.3,3.9641]
[1737690487240,3.9633,252.35,252.28,0.02875765]
[1737690487837,0.02525378,252.36,252.28,0.02875765]
[1737690488040,0.02525378,252.36,252.31,15.56826326]
[1737690488640,11.8863,252.43,252.38,3.9628]
[1737690488846,11.8863,252.43,252.36,15.56826326]
[1737690489141,11.8863,252.43,252.38,3.9628]
[1737690489343,11.8863,252.43,252.36,15.56826326]
[1737690489841,0.02819511,252.42,252.37,0.02541889]
[1737690490143,0.02819511,252.42,252.39,3.9626]
[1737690490342,0.02819511,252.42,252.37,0.02541889]
[1737690492140,0.02819511,252.42,252.39,3.9626]
[1737690494342,0.02819511,252.42,252.37,0.02541889]
[1737690494538,0.02819511,252.42,252.37,3.98831889]
[1737690495246,0.02819511,252.42,252.37,0.02541889]
[1737690495845,3.9623,252.41,252.37,0.02541889]
[1737690496650,0.02819511,252.42,252.34,9.79127684]
[1737690497244,3.9628,252.38,252.34,9.79127684]
[1737690497647,0.02819511,252.42,252.3,9.79127684]
[1737690497855,3.9632,252.36,252.33,0.02944349]
[1737690501154,3.9632,252.36,252.34,9.79127684]
[1737690501952,3.9632,252.36,252.33,0.02944349]
[1737690503750,0.02511484,252.39,252.34,9.79127684]
[1737690506053,3.9628,252.38,252.33,0.02944349]
[1737690506247,0.02511484,252.39,252.33,0.02944349]
[1737690506451,3.963,252.37,252.33,0.02944349]
[1737690507155,0.02511484,252.39,252.33,0.02944349]
[1737690507453,3.9634,252.34,252.33,0.02944349]
[1737690508157,3.9634,252.34,252.3,9.79127684]
[1737690508355,0.02511484,252.39,252.26,9.79127684]
[1737690508554,0.02511484,252.39,252.21,9.79127684]
[1737690508555,2.7465,252.33,252.21,9.79127684]
[1737690509355,0.02879616,252.3,252.24,0.03040743]
[1737690509555,0.02879616,252.3,252.21,9.79127684]
[1737690509957,3.9649,252.25,252.19,3.9658]
[1737690510450,3.9656,252.21,252.17,9.79127684]
[1737690510655,0.02793746,252.25,252.19,0.02520352]
[1737690510848,0.02793746,252.25,252.13,9.79127684]
[1737690511056,9.79127684,252.31,252.13,9.79127684]
[1737690511252,3.9659,252.19,252.17,9.79127684]
[1737690511453,2.7465,252.33,252.19,3.9657]
[1737690512154,0.02692541,252.29,252.23,0.02580323]
[1737690512358,9.79127684,252.31,252.13,9.79127684]
[1737690513158,9.79127684,252.27,252.09,9.79127684]
[1737690513459,0.02840907,252.21,252.15,0.02502716]
[1737690513656,0.02840907,252.21,252.09,9.79127684]
[1737690513855,3.9669,252.12,252.06,3.9677]
[1737690514361,3.9669,252.12,252.07,3.9676]
[1737690514750,3.99670214,252.12,252.07,3.99434944]
[1737690514956,3.99670214,252.12,252.07,0.02674944]
[1737690516253,0.02980214,252.12,252.07,0.02674944]
[1737690516457,0.02980214,252.12,252.04,15.7007802]
[1737690516458,3.9673,252.1,252.04,15.7007802]
[1737690517160,3.9676,252.08,251.99,15.7007802]
[1737690517552,0.026568,252.06,252.01,0.02982557]
[1737690518961,0.00076477,252.06,252.04,19.6688802]
[1737690519363,0.00076477,252.06,252.04,15.7007802]
[1737690520264,0.00076477,252.06,252.01,0.02982557]
[1737690521256,0.00076477,252.06,251.9,3.9703]
[1737690521457,15.7007802,252.12,251.89,15.7007802]
[1737690521761,15.7007802,252.12,251.84,4.14]
[1737690522068,15.7007802,252.12,251.81,15.7007802]
[1737690522255,15.7007802,252.12,251.86,3.9709]
[1737690522256,3.9696,251.95,251.86,3.9709]
[1737690522560,3.9696,251.95,251.94,0.02930132]
[1737690522760,3.9696,251.95,251.86,3.9709]
[1737690522970,3.9696,251.95,251.92,0.02813583]
[1737690523666,0.02523748,251.97,251.81,15.7007802]
[1737690523865,3.97,251.93,251.81,15.7007802]
[1737690524765,2.7324,252.06,251.81,15.7007802]
[1737690524766,3.9701,251.92,251.81,15.7007802]
[1737690524967,0.02608663,251.9,251.84,0.02975436]
[1737690525968,0.02608663,251.9,251.86,15.7007802]
[1737690526858,0.02608663,251.9,251.88,3.9707]
[1737690527569,1.3191,252.05,251.86,15.7007802]
[1737690527768,3.9693,251.97,251.91,15.7007802]
[1737690528471,1.3191,252.05,251.91,15.7007802]
[1737690528767,2.7324,252.06,251.91,15.7007802]
[1737690528959,0.02708074,252.01,251.95,0.0277375]
[1737690529566,0.02708074,252.01,251.95,3.9971375]
[1737690529867,0.02708074,252.01,251.95,0.0277375]
[1737690531166,0.02708074,252.01,251.99,3.9689]
[1737690531767,0.02708074,252.01,251.97,3.9692]
[1737690532973,0.02708074,252.01,251.96,15.7007802]
[1737690533971,0.02708074,252.01,251.97,3.9692]
[1737690535771,0.02708074,252.01,251.97,13.78887868]
[1737690537373,0.02708074,252.01,251.95,0.0277375]
[1737690538169,3.9688,252.0,251.95,0.0277375]
[1737690539875,3.969,251.99,251.95,0.0277375]
[1737690540379,0.02708074,252.01,251.95,0.0277375]
[1737690540877,0.02708074,252.01,251.89,9.81967868]
[1737690541077,3.9697,251.95,251.9,3.9704]
[1737690541674,3.9697,251.95,251.91,3.9702]
[1737690541868,3.99557952,251.95,251.91,3.9702]
[1737690542977,3.99557952,251.95,251.92,3.97]
[1737690544075,3.99557952,251.95,251.9,0.0257861]
[1737690544575,0.02587952,251.95,251.85,9.81967868]
[1737690544781,3.9699,251.93,251.85,13.79077868]
[1737690544977,3.9699,251.93,251.85,9.81967868]
[1737690545374,1.352,252.0,251.85,9.81967868]
[1737690545582,0.02837336,251.92,251.86,0.02648758]
[1737690545982,0.02837336,251.92,251.77,9.81967868]
[1737690546181,9.81967868,251.91,251.73,9.81967868]
[1737690546381,9.81967868,251.87,251.73,9.81967868]
[1737690546585,3.9723,251.78,251.69,9.81967868]
[1737690547284,0.02545842,251.76,251.71,0.02160303]
[1737690548683,3.9738,251.68,251.61,9.81967868]
[1737690548889,9.81967868,251.69,251.57,105.4741304]
[1737690549093,9.81967868,251.69,251.52,9.81967868]
[1737690549291,3.9744,251.65,251.54,3.9759]